[Event "Titled Tuesday Blitz April 4 Late 2023"]
[White "Joubert, Dantelle"]
[Black "Briscoe, Chris"]
[WhiteFideId "14310813"]
[BlackFideId "408360"]
[WhiteElo "1507"]
[BlackElo "2111"]
[Result "0-1"]
[Round "09"]
[TimeControl "180+2"]
[Date "2023.04.04"]
[WhiteClock "0:00:20"]
[BlackClock "0:01:38"]

1. d4 {[%clk 0:03:00]}  a5 {[%clk 0:02:58]} 2. e4 {[%clk 0:02:59]}  e5 {[%clk 0:02:58]} 3. dxe5 {[%clk 0:02:57]}  Bc5 {[%clk 0:02:58]} 4. Nf3 {[%clk 0:02:52]}  Nc6 {[%clk 0:02:58]} 5. Bc4 {[%clk 0:02:47]}  Qe7 {[%clk 0:02:54]} 6. O-O {[%clk 0:02:44]}  Nxe5 {[%clk 0:02:51]} 7. Nxe5 {[%clk 0:02:42]}  Qxe5 {[%clk 0:02:51]} 8. Nc3 {[%clk 0:02:38]}  c6 {[%clk 0:02:44]} 9. Kh1 {[%clk 0:02:22]}  Nf6 {[%clk 0:02:33]} 10. f4 {[%clk 0:02:18]}  Qh5 {[%clk 0:02:33]} 11. Qxh5 {[%clk 0:02:09]}  Nxh5 {[%clk 0:02:34]} 12. e5 {[%clk 0:02:07]}  d5 {[%clk 0:02:25]} 13. exd6 {[%clk 0:02:04]}  Bxd6 {[%clk 0:02:25]} 14. Re1+ {[%clk 0:01:59]}  Kd8 {[%clk 0:02:25]} 15. Be3 {[%clk 0:01:45]}  Kc7 {[%clk 0:02:21]} 16. g3 {[%clk 0:01:34]}  Bf5 {[%clk 0:02:16]} 17. Kg2 {[%clk 0:01:17]}  b5 {[%clk 0:02:05]} 18. Be2 {[%clk 0:01:11]}  Nf6 {[%clk 0:02:02]} 19. Rad1 {[%clk 0:01:03]}  b4 {[%clk 0:01:58]} 20. Na4 {[%clk 0:00:59]}  Bxc2 {[%clk 0:01:56]} 21. Bb6+ {[%clk 0:00:50]}  Kb7 {[%clk 0:01:49]} 22. Rxd6 {[%clk 0:00:39]}  Bxa4 {[%clk 0:01:49]} 23. Bf2 {[%clk 0:00:23]}  Rad8 {[%clk 0:01:39]} 24. Red1 {[%clk 0:00:20]}  Bxd1 {[%clk 0:01:38]} 0-1


[Site "https://www.chess.com"]

[Event "Titled Tuesday Blitz April 4 Late 2023"]
[White "Duda, Jan-Krzysztof"]
[Black "Zhigalko, Sergei"]
[WhiteFideId "1170546"]
[BlackFideId "13502956"]
[WhiteElo "2790"]
[BlackElo "2626"]
[Result "1-0"]
[Round "10"]
[TimeControl "180+2"]
[Date "2023.04.04"]
[WhiteClock "0:00:04"]
[BlackClock "0:00:01"]

1. e4 {[%clk 0:03:00]}  c5 {[%clk 0:02:57]} 2. Nf3 {[%clk 0:03:01]}  Nc6 {[%clk 0:02:58]} 3. Bb5 {[%clk 0:03:01]}  Nf6 {[%clk 0:02:58]} 4. Bxc6 {[%clk 0:02:58]}  dxc6 {[%clk 0:02:59]} 5. d3 {[%clk 0:02:58]}  Bg4 {[%clk 0:02:59]} 6. Nbd2 {[%clk 0:02:58]}  Qc7 {[%clk 0:02:56]} 7. h3 {[%clk 0:02:58]}  Bh5 {[%clk 0:02:57]} 8. a4 {[%clk 0:02:54]}  Nd7 {[%clk 0:02:53]} 9. Nc4 {[%clk 0:02:48]}  b5 {[%clk 0:02:36]} 10. Ne3 {[%clk 0:02:42]}  e6 {[%clk 0:02:34]} 11. b3 {[%clk 0:02:10]}  Bd6 {[%clk 0:02:28]} 12. g4 {[%clk 0:02:03]}  Bg6 {[%clk 0:02:27]} 13. Bb2 {[%clk 0:02:03]}  f6 {[%clk 0:02:22]} 14. h4 {[%clk 0:02:03]}  Bf7 {[%clk 0:02:17]} 15. Rg1 {[%clk 0:01:57]}  Bf4 {[%clk 0:02:01]} 16. Qe2 {[%clk 0:01:51]}  O-O {[%clk 0:01:54]} 17. Ng2 {[%clk 0:01:27]}  Bd6 {[%clk 0:01:52]} 18. h5 {[%clk 0:01:26]}  h6 {[%clk 0:01:44]} 19. Ngh4 {[%clk 0:01:26]}  Rfe8 {[%clk 0:01:33]} 20. Kf1 {[%clk 0:01:21]}  Bf4 {[%clk 0:01:24]} 21. e5 {[%clk 0:01:16]}  c4 {[%clk 0:01:05]} 22. dxc4 {[%clk 0:01:08]}  bxc4 {[%clk 0:01:04]} 23. exf6 {[%clk 0:01:08]}  gxf6 {[%clk 0:00:56]} 24. Qxc4 {[%clk 0:00:59]}  e5 {[%clk 0:00:57]} 25. Qe2 {[%clk 0:00:57]}  Nc5 {[%clk 0:00:42]} 26. Nf5 {[%clk 0:00:55]}  Rad8 {[%clk 0:00:39]} 27. Kg2 {[%clk 0:00:23]}  Ne6 {[%clk 0:00:17]} 28. Rad1 {[%clk 0:00:22]}  Bg5 {[%clk 0:00:16]} 29. Kh1 {[%clk 0:00:11]}  Nf4 {[%clk 0:00:17]} 30. Qe3 {[%clk 0:00:11]}  Bd5 {[%clk 0:00:14]} 31. Kh2 {[%clk 0:00:04]}  Bxf3 {[%clk 0:00:03]} 32. Qxf3 {[%clk 0:00:05]}  e4 {[%clk 0:00:03]} 33. Qg3 {[%clk 0:00:05]}  Qc8 {[%clk 0:00:02]} 34. Rxd8 {[%clk 0:00:04]}  Qxd8 {[%clk 0:00:03]} 35. Re1 {[%clk 0:00:04]}  Qd2 {[%clk 0:00:03]} 36. Re3 {[%clk 0:00:04]}  Qxc2 {[%clk 0:00:03]} 37. Bxf6 {[%clk 0:00:03]}  Bxf6 {[%clk 0:00:03]} 38. Qxf4 {[%clk 0:00:04]}  Bg5 {[%clk 0:00:03]} 39. Nxh6+ {[%clk 0:00:04]}  Bxh6 {[%clk 0:00:04]} 40. g5 {[%clk 0:00:04]}  Bg7 {[%clk 0:00:04]} 41. Kg2 {[%clk 0:00:04]}  Qd2 {[%clk 0:00:02]} 42. h6 {[%clk 0:00:04]}  Be5 {[%clk 0:00:01]} 43. Qf5 {[%clk 0:00:04]} 1-0


[Site "https://www.chess.com"]

[Event "Titled Tuesday Blitz April 4 Late 2023"]
[White "Bluebaum, Matthias"]
[Black "Beerdsen, Thomas"]
[WhiteFideId "24651516"]
[BlackFideId "1030108"]
[WhiteElo "2638"]
[BlackElo "2547"]
[Result "0-1"]
[Round "10"]
[TimeControl "180+2"]
[Date "2023.04.04"]
[WhiteClock "0:00:02"]
[BlackClock "0:00:16"]

1. d4 {[%clk 0:03:00]}  Nf6 {[%clk 0:03:00]} 2. c4 {[%clk 0:03:01]}  a6 {[%clk 0:03:01]} 3. Nc3 {[%clk 0:02:57]}  b5 {[%clk 0:03:02]} 4. cxb5 {[%clk 0:02:57]}  axb5 {[%clk 0:03:02]} 5. Nxb5 {[%clk 0:02:58]}  e5 {[%clk 0:03:03]} 6. dxe5 {[%clk 0:02:54]}  Ne4 {[%clk 0:03:04]} 7. Nc3 {[%clk 0:02:47]}  Bb4 {[%clk 0:03:04]} 8. Bd2 {[%clk 0:02:45]}  Nxd2 {[%clk 0:03:02]} 9. Qxd2 {[%clk 0:02:46]}  O-O {[%clk 0:03:02]} 10. Nf3 {[%clk 0:02:46]}  Nc6 {[%clk 0:02:57]} 11. a3 {[%clk 0:02:43]}  Qe7 {[%clk 0:02:54]} 12. Rc1 {[%clk 0:02:41]}  Ba5 {[%clk 0:02:48]} 13. b4 {[%clk 0:02:39]}  Bb6 {[%clk 0:02:45]} 14. Nd5 {[%clk 0:02:39]}  Qe6 {[%clk 0:02:45]} 15. Nxb6 {[%clk 0:02:34]}  cxb6 {[%clk 0:02:46]} 16. Qb2 {[%clk 0:02:34]}  Bb7 {[%clk 0:02:20]} 17. e3 {[%clk 0:02:34]}  Rfe8 {[%clk 0:02:13]} 18. Be2 {[%clk 0:02:20]}  Nxe5 {[%clk 0:02:12]} 19. Nxe5 {[%clk 0:02:03]}  Qxe5 {[%clk 0:02:13]} 20. Qxe5 {[%clk 0:02:04]}  Rxe5 {[%clk 0:02:14]} 21. Bf3 {[%clk 0:02:05]}  Be4 {[%clk 0:01:47]} 22. Bxe4 {[%clk 0:01:51]}  Rxe4 {[%clk 0:01:47]} 23. Ke2 {[%clk 0:01:52]}  d5 {[%clk 0:01:43]} 24. Rhd1 {[%clk 0:01:52]}  g6 {[%clk 0:01:37]} 25. Rc3 {[%clk 0:01:39]}  Rc4 {[%clk 0:01:37]} 26. Rcd3 {[%clk 0:01:24]}  Kg7 {[%clk 0:01:33]} 27. R1d2 {[%clk 0:01:23]}  h5 {[%clk 0:01:33]} 28. Kf3 {[%clk 0:01:18]}  Rg4 {[%clk 0:01:08]} 29. h3 {[%clk 0:01:15]}  Rc4 {[%clk 0:01:09]} 30. Rb3 {[%clk 0:01:13]}  Rd8 {[%clk 0:01:06]} 31. a4 {[%clk 0:01:09]}  Ra8 {[%clk 0:01:04]} 32. Ra2 {[%clk 0:01:05]}  d4 {[%clk 0:01:04]} 33. e4 {[%clk 0:00:45]}  Rac8 {[%clk 0:01:04]} 34. a5 {[%clk 0:00:23]}  Rc3+ {[%clk 0:00:59]} 35. Rxc3 {[%clk 0:00:23]}  dxc3 {[%clk 0:01:00]} 36. Rc2 {[%clk 0:00:22]}  bxa5 {[%clk 0:00:59]} 37. bxa5 {[%clk 0:00:23]}  Ra8 {[%clk 0:00:58]} 38. Rxc3 {[%clk 0:00:24]}  Rxa5 {[%clk 0:00:59]} 39. h4 {[%clk 0:00:22]}  Ra4 {[%clk 0:00:58]} 40. Rd3 {[%clk 0:00:22]}  Rb4 {[%clk 0:00:58]} 41. Ke3 {[%clk 0:00:22]}  Ra4 {[%clk 0:00:58]} 42. Rd4 {[%clk 0:00:22]}  Ra1 {[%clk 0:00:58]} 43. Kf3 {[%clk 0:00:20]}  Ra3+ {[%clk 0:00:58]} 44. Kf4 {[%clk 0:00:20]}  Ra2 {[%clk 0:00:58]} 45. Kg3 {[%clk 0:00:21]}  Ra1 {[%clk 0:00:57]} 46. f3 {[%clk 0:00:20]}  Re1 {[%clk 0:00:57]} 47. Kf4 {[%clk 0:00:20]}  Re2 {[%clk 0:00:57]} 48. g3 {[%clk 0:00:21]}  Re1 {[%clk 0:00:57]} 49. Rd5 {[%clk 0:00:21]}  Re2 {[%clk 0:00:57]} 50. Rc5 {[%clk 0:00:22]}  Re1 {[%clk 0:00:57]} 51. Rc3 {[%clk 0:00:22]}  Re2 {[%clk 0:00:57]} 52. Re3 {[%clk 0:00:23]}  Ra2 {[%clk 0:00:58]} 53. Rd3 {[%clk 0:00:23]}  Re2 {[%clk 0:00:58]} 54. Rd4 {[%clk 0:00:23]}  Re1 {[%clk 0:00:58]} 55. e5 {[%clk 0:00:24]}  Re2 {[%clk 0:00:59]} 56. Re4 {[%clk 0:00:24]}  Ra2 {[%clk 0:00:58]} 57. Rb4 {[%clk 0:00:24]}  Re2 {[%clk 0:00:58]} 58. Rb3 {[%clk 0:00:19]}  Re1 {[%clk 0:00:57]} 59. Re3 {[%clk 0:00:20]}  Ra1 {[%clk 0:00:58]} 60. Re4 {[%clk 0:00:15]}  Rb1 {[%clk 0:00:55]} 61. Ke3 {[%clk 0:00:09]}  Rf1 {[%clk 0:00:53]} 62. Ke2 {[%clk 0:00:07]}  Rg1 {[%clk 0:00:53]} 63. Kf2 {[%clk 0:00:08]}  Ra1 {[%clk 0:00:53]} 64. Re2 {[%clk 0:00:07]}  Ra5 {[%clk 0:00:53]} 65. Kg2 {[%clk 0:00:07]}  Ra3 {[%clk 0:00:53]} 66. Kf2 {[%clk 0:00:07]}  Rb3 {[%clk 0:00:53]} 67. Rd2 {[%clk 0:00:07]}  Ra3 {[%clk 0:00:54]} 68. Rc2 {[%clk 0:00:07]}  Rb3 {[%clk 0:00:54]} 69. Rc5 {[%clk 0:00:06]}  Rb2+ {[%clk 0:00:54]} 70. Ke3 {[%clk 0:00:07]}  Rb4 {[%clk 0:00:54]} 71. Rd5 {[%clk 0:00:07]}  Rb1 {[%clk 0:00:54]} 72. Rd7 {[%clk 0:00:07]}  Re1+ {[%clk 0:00:54]} 73. Kf4 {[%clk 0:00:08]}  Re2 {[%clk 0:00:54]} 74. Re7 {[%clk 0:00:08]}  Re1 {[%clk 0:00:54]} 75. Kg5 {[%clk 0:00:02]}  Rf1 {[%clk 0:00:46]} 76. f4 {[%clk 0:00:01]}  Rg1 {[%clk 0:00:45]} 77. f5 {[%clk 0:00:02]}  Rxg3+ {[%clk 0:00:44]} 78. Kf4 {[%clk 0:00:03]}  Rg4+ {[%clk 0:00:45]} 79. Kf3 {[%clk 0:00:03]}  gxf5 {[%clk 0:00:43]} 80. e6 {[%clk 0:00:04]}  Kf6 {[%clk 0:00:43]} 81. Rxf7+ {[%clk 0:00:05]}  Kxe6 {[%clk 0:00:44]} 82. Rh7 {[%clk 0:00:05]}  Rxh4 {[%clk 0:00:44]} 83. Kg3 {[%clk 0:00:05]}  Rg4+ {[%clk 0:00:44]} 84. Kf3 {[%clk 0:00:06]}  h4 {[%clk 0:00:44]} 85. Rh6+ {[%clk 0:00:05]}  Ke5 {[%clk 0:00:44]} 86. Ra6 {[%clk 0:00:04]}  Rg3+ {[%clk 0:00:43]} 87. Kf2 {[%clk 0:00:05]}  Kf4 {[%clk 0:00:44]} 88. Rh6 {[%clk 0:00:05]}  Kg5 {[%clk 0:00:43]} 89. Rh8 {[%clk 0:00:05]}  Rb3 {[%clk 0:00:44]} 90. Kg2 {[%clk 0:00:05]}  Kg4 {[%clk 0:00:44]} 91. Rg8+ {[%clk 0:00:05]}  Kf4 {[%clk 0:00:44]} 92. Kh2 {[%clk 0:00:05]}  Kf3 {[%clk 0:00:42]} 93. Kh3 {[%clk 0:00:05]}  Rb1 {[%clk 0:00:40]} 94. Kh2 {[%clk 0:00:05]}  f4 {[%clk 0:00:40]} 95. Ra8 {[%clk 0:00:04]}  Rb2+ {[%clk 0:00:39]} 96. Kh3 {[%clk 0:00:05]}  Ke2 {[%clk 0:00:36]} 97. Re8+ {[%clk 0:00:04]}  Kf1 {[%clk 0:00:33]} 98. Rf8 {[%clk 0:00:04]}  Rf2 {[%clk 0:00:18]} 99. Kxh4 {[%clk 0:00:04]}  Kg2 {[%clk 0:00:19]} 100. Kg4 {[%clk 0:00:04]}  f3 {[%clk 0:00:19]} 101. Rf4 {[%clk 0:00:04]}  Rf1 {[%clk 0:00:18]} 102. Rf5 {[%clk 0:00:04]}  f2 {[%clk 0:00:19]} 103. Rf3 {[%clk 0:00:02]}  Rg1 {[%clk 0:00:17]} 104. Kh4 {[%clk 0:00:01]}  f1=Q {[%clk 0:00:16]} 105. Rg3+ {[%clk 0:00:02]}  Kf2 {[%clk 0:00:16]} 106. Rg4 {[%clk 0:00:01]}  Rxg4+ {[%clk 0:00:16]} 107. Kh5 {[%clk 0:00:02]}  Qh3# {[%clk 0:00:16]} 0-1


[Site "https://www.chess.com"]

[Event "Titled Tuesday Blitz April 4 Late 2023"]
[White "tuschessCM1"]
[Black "Paravyan, David"]
[BlackFideId "4194985"]
[WhiteElo "2761"]
[BlackElo "2563"]
[Result "0-1"]
[Round "10"]
[TimeControl "180+2"]
[Date "2023.04.04"]
[WhiteClock "0:00:09"]
[BlackClock "0:00:13"]

1. c4 {[%clk 0:03:00]}  c5 {[%clk 0:02:59]} 2. Nf3 {[%clk 0:03:00]}  Nf6 {[%clk 0:02:59]} 3. d4 {[%clk 0:03:00]}  cxd4 {[%clk 0:02:59]} 4. Nxd4 {[%clk 0:03:01]}  Nc6 {[%clk 0:02:57]} 5. Nc3 {[%clk 0:02:57]}  e6 {[%clk 0:02:58]} 6. g3 {[%clk 0:02:57]}  Qb6 {[%clk 0:02:56]} 7. Nb3 {[%clk 0:02:57]}  Ne5 {[%clk 0:02:55]} 8. e4 {[%clk 0:02:57]}  Bb4 {[%clk 0:02:55]} 9. Qe2 {[%clk 0:02:55]}  d6 {[%clk 0:01:47]} 10. f4 {[%clk 0:02:47]}  Ned7 {[%clk 0:01:47]} 11. Bd2 {[%clk 0:02:38]}  Nc5 {[%clk 0:01:43]} 12. Nxc5 {[%clk 0:02:35]}  Bxc5 {[%clk 0:01:40]} 13. Na4 {[%clk 0:01:43]}  Qc6 {[%clk 0:01:36]} 14. Nxc5 {[%clk 0:01:43]}  dxc5 {[%clk 0:01:36]} 15. Bg2 {[%clk 0:01:43]}  e5 {[%clk 0:01:37]} 16. Bc3 {[%clk 0:01:43]}  Bg4 {[%clk 0:01:31]} 17. Qe3 {[%clk 0:01:39]}  Be6 {[%clk 0:01:30]} 18. b3 {[%clk 0:01:32]}  O-O-O {[%clk 0:01:25]} 19. O-O {[%clk 0:01:29]}  Rhe8 {[%clk 0:01:03]} 20. h3 {[%clk 0:01:20]}  exf4 {[%clk 0:00:53]} 21. gxf4 {[%clk 0:01:20]}  Bf5 {[%clk 0:00:53]} 22. e5 {[%clk 0:00:44]}  Be4 {[%clk 0:00:51]} 23. Bxe4 {[%clk 0:00:38]}  Nxe4 {[%clk 0:00:46]} 24. Rae1 {[%clk 0:00:38]}  f5 {[%clk 0:00:42]} 25. Rd1 {[%clk 0:00:11]}  Rd7 {[%clk 0:00:41]} 26. Rxd7 {[%clk 0:00:10]}  Qxd7 {[%clk 0:00:42]} 27. e6 {[%clk 0:00:09]}  Rxe6 {[%clk 0:00:40]} 28. Be5 {[%clk 0:00:09]}  Rg6+ {[%clk 0:00:36]} 29. Kh2 {[%clk 0:00:08]}  Rg3 {[%clk 0:00:35]} 30. Rf3 {[%clk 0:00:07]}  Rxf3 {[%clk 0:00:34]} 31. Qxf3 {[%clk 0:00:07]}  Qd2+ {[%clk 0:00:34]} 32. Qg2 {[%clk 0:00:08]}  Qxg2+ {[%clk 0:00:34]} 33. Kxg2 {[%clk 0:00:09]}  Kd7 {[%clk 0:00:34]} 34. Bxg7 {[%clk 0:00:08]}  Ke6 {[%clk 0:00:27]} 35. Kf3 {[%clk 0:00:08]}  Kf7 {[%clk 0:00:28]} 36. Be5 {[%clk 0:00:08]}  Kg6 {[%clk 0:00:28]} 37. Bb8 {[%clk 0:00:06]}  a6 {[%clk 0:00:29]} 38. Bc7 {[%clk 0:00:07]}  Kh5 {[%clk 0:00:28]} 39. Bd8 {[%clk 0:00:06]}  Nc3 {[%clk 0:00:25]} 40. a3 {[%clk 0:00:04]}  Ne4 {[%clk 0:00:15]} 41. Be7 {[%clk 0:00:03]}  Nd2+ {[%clk 0:00:15]} 42. Ke2 {[%clk 0:00:03]}  Nxb3 {[%clk 0:00:15]} 43. Kd3 {[%clk 0:00:04]}  Nd4 {[%clk 0:00:14]} 44. Bxc5 {[%clk 0:00:04]}  Ne6 {[%clk 0:00:15]} 45. Be3 {[%clk 0:00:03]}  Kh4 {[%clk 0:00:15]} 46. c5 {[%clk 0:00:03]}  Kxh3 {[%clk 0:00:15]} 47. Kc4 {[%clk 0:00:04]}  Nc7 {[%clk 0:00:08]} 48. Bd4 {[%clk 0:00:03]}  Kg4 {[%clk 0:00:08]} 49. Be5 {[%clk 0:00:03]}  Nb5 {[%clk 0:00:03]} 50. a4 {[%clk 0:00:03]}  Na7 {[%clk 0:00:04]} 51. Kd5 {[%clk 0:00:02]}  h5 {[%clk 0:00:05]} 52. Kd6 {[%clk 0:00:02]}  h4 {[%clk 0:00:05]} 53. Bd4 {[%clk 0:00:01]}  Nc6 {[%clk 0:00:04]} 54. Bg1 {[%clk 0:00:02]}  h3 {[%clk 0:00:04]} 55. Kc7 {[%clk 0:00:02]}  Kg3 {[%clk 0:00:04]} 56. Kxb7 {[%clk 0:00:03]}  Nb4 {[%clk 0:00:03]} 57. c6 {[%clk 0:00:02]}  Nxc6 {[%clk 0:00:03]} 58. Kxc6 {[%clk 0:00:03]}  Kg2 {[%clk 0:00:04]} 59. Kd5 {[%clk 0:00:03]}  Kxg1 {[%clk 0:00:04]} 60. Ke5 {[%clk 0:00:03]}  h2 {[%clk 0:00:05]} 61. Kxf5 {[%clk 0:00:04]}  h1=Q {[%clk 0:00:06]} 62. Ke6 {[%clk 0:00:05]}  Qg2 {[%clk 0:00:07]} 63. f5 {[%clk 0:00:06]}  Qa2+ {[%clk 0:00:08]} 64. Ke5 {[%clk 0:00:06]}  Qxa4 {[%clk 0:00:09]} 65. f6 {[%clk 0:00:07]}  Qe8+ {[%clk 0:00:09]} 66. Kd6 {[%clk 0:00:08]}  Qf7 {[%clk 0:00:10]} 67. Ke5 {[%clk 0:00:08]}  a5 {[%clk 0:00:11]} 68. Kf5 {[%clk 0:00:08]}  a4 {[%clk 0:00:12]} 69. Ke5 {[%clk 0:00:09]}  a3 {[%clk 0:00:13]} 0-1


[Site "https://www.chess.com"]

[Event "Titled Tuesday Blitz April 4 Late 2023"]
[White "Thomforde-Toates, Noah"]
[Black "Chigaev, Maksim"]
[WhiteFideId "30951992"]
[BlackFideId "4108116"]
[WhiteElo "2724"]
[BlackElo "2547"]
[Result "0-1"]
[Round "10"]
[TimeControl "180+2"]
[Date "2023.04.04"]
[WhiteClock "0:00:05"]
[BlackClock "0:00:19"]

1. e4 {[%clk 0:02:59]}  c5 {[%clk 0:03:00]} 2. Nf3 {[%clk 0:02:56]}  Nc6 {[%clk 0:03:00]} 3. Nc3 {[%clk 0:02:56]}  Nf6 {[%clk 0:02:58]} 4. d4 {[%clk 0:02:55]}  cxd4 {[%clk 0:02:58]} 5. Nxd4 {[%clk 0:02:56]}  e5 {[%clk 0:02:58]} 6. Ndb5 {[%clk 0:02:56]}  d6 {[%clk 0:02:59]} 7. Bg5 {[%clk 0:02:47]}  a6 {[%clk 0:02:51]} 8. Na3 {[%clk 0:02:47]}  b5 {[%clk 0:02:51]} 9. Nd5 {[%clk 0:02:46]}  Be7 {[%clk 0:02:51]} 10. Bxf6 {[%clk 0:02:46]}  Bxf6 {[%clk 0:02:50]} 11. c4 {[%clk 0:02:47]}  Nd4 {[%clk 0:02:50]} 12. Nc2 {[%clk 0:02:39]}  Bg4 {[%clk 0:02:49]} 13. Qd3 {[%clk 0:01:55]}  bxc4 {[%clk 0:02:25]} 14. Qxc4 {[%clk 0:01:43]}  Rc8 {[%clk 0:02:22]} 15. Nxd4 {[%clk 0:00:58]}  Rxc4 {[%clk 0:02:18]} 16. Bxc4 {[%clk 0:00:56]}  exd4 {[%clk 0:02:19]} 17. O-O {[%clk 0:00:54]}  O-O {[%clk 0:02:19]} 18. Bxa6 {[%clk 0:00:52]}  d3 {[%clk 0:01:57]} 19. Bxd3 {[%clk 0:00:49]}  Bxb2 {[%clk 0:01:53]} 20. Rab1 {[%clk 0:00:49]}  Bd4 {[%clk 0:01:54]} 21. a4 {[%clk 0:00:46]}  Be6 {[%clk 0:01:53]} 22. Bc4 {[%clk 0:00:36]}  Bxd5 {[%clk 0:01:50]} 23. Bxd5 {[%clk 0:00:33]}  Qa5 {[%clk 0:01:51]} 24. Bc6 {[%clk 0:00:26]}  g6 {[%clk 0:01:47]} 25. g3 {[%clk 0:00:25]}  Kg7 {[%clk 0:01:47]} 26. Kg2 {[%clk 0:00:25]}  Rc8 {[%clk 0:01:42]} 27. Bd5 {[%clk 0:00:23]}  Rc7 {[%clk 0:01:34]} 28. Rfd1 {[%clk 0:00:22]}  Qxa4 {[%clk 0:01:28]} 29. Rb3 {[%clk 0:00:20]}  Bc5 {[%clk 0:01:12]} 30. Rdb1 {[%clk 0:00:17]}  Qd4 {[%clk 0:01:01]} 31. Rf3 {[%clk 0:00:16]}  Re7 {[%clk 0:00:59]} 32. Rbb3 {[%clk 0:00:14]}  f6 {[%clk 0:00:46]} 33. Rbd3 {[%clk 0:00:14]}  Qa4 {[%clk 0:00:45]} 34. Rf4 {[%clk 0:00:13]}  Re5 {[%clk 0:00:42]} 35. Rb3 {[%clk 0:00:11]}  Rxd5 {[%clk 0:00:22]} 36. Rb7+ {[%clk 0:00:10]}  Kh6 {[%clk 0:00:20]} 37. exd5 {[%clk 0:00:07]}  Qa2 {[%clk 0:00:20]} 38. Rh4+ {[%clk 0:00:07]}  Kg5 {[%clk 0:00:20]} 39. Rbxh7 {[%clk 0:00:07]}  Qxf2+ {[%clk 0:00:19]} 40. Kh3 {[%clk 0:00:05]}  Qf1# {[%clk 0:00:19]} 0-1


[Site "https://www.chess.com"]

[Event "Titled Tuesday Blitz April 4 Late 2023"]
[White "Grigoriants, Sergey"]
[Black "Aydincelebi, Kagan"]
[WhiteFideId "4130804"]
[BlackFideId "6361102"]
[WhiteElo "2502"]
[BlackElo "2180"]
[Result "1-0"]
[Round "10"]
[TimeControl "180+2"]
[Date "2023.04.04"]
[WhiteClock "0:00:04"]
[BlackClock "0:00:09"]

1. d4 {[%clk 0:03:00]}  Nf6 {[%clk 0:02:59]} 2. c4 {[%clk 0:02:56]}  e6 {[%clk 0:03:00]} 3. Nc3 {[%clk 0:02:51]}  c5 {[%clk 0:03:00]} 4. d5 {[%clk 0:02:51]}  exd5 {[%clk 0:03:01]} 5. cxd5 {[%clk 0:02:49]}  d6 {[%clk 0:03:01]} 6. e4 {[%clk 0:02:47]}  g6 {[%clk 0:03:02]} 7. h3 {[%clk 0:02:47]}  Bg7 {[%clk 0:03:02]} 8. Nf3 {[%clk 0:02:48]}  O-O {[%clk 0:03:02]} 9. Bd3 {[%clk 0:02:48]}  Na6 {[%clk 0:03:02]} 10. O-O {[%clk 0:02:48]}  Nc7 {[%clk 0:03:02]} 11. Re1 {[%clk 0:02:47]}  Nd7 {[%clk 0:03:01]} 12. Bf4 {[%clk 0:02:46]}  Qe7 {[%clk 0:03:01]} 13. Qd2 {[%clk 0:02:43]}  Rb8 {[%clk 0:02:59]} 14. a4 {[%clk 0:02:43]}  a6 {[%clk 0:02:59]} 15. Rab1 {[%clk 0:02:36]}  b5 {[%clk 0:02:58]} 16. axb5 {[%clk 0:02:31]}  Nxb5 {[%clk 0:02:58]} 17. Nxb5 {[%clk 0:02:24]}  axb5 {[%clk 0:02:59]} 18. b4 {[%clk 0:02:25]}  c4 {[%clk 0:02:50]} 19. Bc2 {[%clk 0:02:25]}  Ne5 {[%clk 0:02:50]} 20. Nd4 {[%clk 0:02:22]}  Bd7 {[%clk 0:02:47]} 21. Bh6 {[%clk 0:02:19]}  Bxh6 {[%clk 0:02:45]} 22. Qxh6 {[%clk 0:02:19]}  Qf6 {[%clk 0:02:41]} 23. Qe3 {[%clk 0:02:17]}  g5 {[%clk 0:02:40]} 24. Ne2 {[%clk 0:02:01]}  Ra8 {[%clk 0:02:36]} 25. f4 {[%clk 0:01:42]}  gxf4 {[%clk 0:02:35]} 26. Nxf4 {[%clk 0:01:42]}  Ra2 {[%clk 0:02:34]} 27. Re2 {[%clk 0:01:42]}  Kh8 {[%clk 0:02:29]} 28. Rf1 {[%clk 0:01:42]}  Qg5 {[%clk 0:02:25]} 29. Bd1 {[%clk 0:01:21]}  Ra1 {[%clk 0:02:20]} 30. Ref2 {[%clk 0:01:20]}  Rg8 {[%clk 0:02:17]} 31. Qc3 {[%clk 0:01:17]}  Rb1 {[%clk 0:02:00]} 32. Bh5 {[%clk 0:01:02]}  Rb3 {[%clk 0:01:55]} 33. Qd4 {[%clk 0:01:00]}  Rg7 {[%clk 0:01:41]} 34. Ra1 {[%clk 0:00:45]}  h6 {[%clk 0:01:31]} 35. Bd1 {[%clk 0:00:33]}  Rg3 {[%clk 0:01:23]} 36. Kf1 {[%clk 0:00:25]}  Kh7 {[%clk 0:01:19]} 37. Raa2 {[%clk 0:00:22]}  Nd3 {[%clk 0:01:09]} 38. Nh5 {[%clk 0:00:16]}  Nxf2 {[%clk 0:01:01]} 39. Qxf2 {[%clk 0:00:06]}  Rd3 {[%clk 0:00:42]} 40. Nf6+ {[%clk 0:00:06]}  Kg6 {[%clk 0:00:42]} 41. Bh5+ {[%clk 0:00:06]}  Qxh5 {[%clk 0:00:37]} 42. Nxh5 {[%clk 0:00:07]}  Kxh5 {[%clk 0:00:37]} 43. Rd2 {[%clk 0:00:07]}  Rdg3 {[%clk 0:00:28]} 44. Qf4 {[%clk 0:00:07]}  R7g6 {[%clk 0:00:19]} 45. Rf2 {[%clk 0:00:06]}  c3 {[%clk 0:00:16]} 46. e5 {[%clk 0:00:05]}  dxe5 {[%clk 0:00:15]} 47. Qxe5+ {[%clk 0:00:06]}  R6g5 {[%clk 0:00:15]} 48. Qf6 {[%clk 0:00:05]}  c2 {[%clk 0:00:09]} 49. Rxc2 {[%clk 0:00:04]}  Bf5 {[%clk 0:00:10]} 50. Rf2 {[%clk 0:00:02]}  Bg6 {[%clk 0:00:09]} 51. Kg1 {[%clk 0:00:02]}  Rxh3 {[%clk 0:00:09]} 52. Qxg5+ {[%clk 0:00:02]}  Kxg5 {[%clk 0:00:09]} 53. gxh3 {[%clk 0:00:03]}  Bf5 {[%clk 0:00:09]} 54. d6 {[%clk 0:00:04]}  Be6 {[%clk 0:00:09]} 55. Rxf7 {[%clk 0:00:03]}  Bxh3 {[%clk 0:00:09]} 56. d7 {[%clk 0:00:04]} 1-0


[Site "https://www.chess.com"]